[Event "*** Titled Tuesday Blitz"]
[Site "Chess.com"]
[Date "2018.11.06"]
[Round "5"]
[White "Ramosha"]
[Black "Caminator2000"]
[Result "0-1"]
[WhiteElo "2462"]
[BlackElo "2323"]
[TimeControl "180+2"]
[EndTime "14:07:17 PST"]
[Termination "Caminator2000 won by checkmate"]

1. d4 {[%clk 0:03:01.9]} 1... b5 {[%clk 0:02:57.7]} 2. Nf3 {[%clk 0:02:58.6]}
2... Bb7 {[%clk 0:02:58.4]} 3. g3 {[%clk 0:02:59.2]} 3... Nf6 {[%clk 0:02:58.5]}
4. Bg2 {[%clk 0:03:00]} 4... e6 {[%clk 0:03:00.1]} 5. O-O {[%clk 0:03:00.8]}
5... c5 {[%clk 0:03:01.3]} 6. c3 {[%clk 0:03:00.9]} 6... d6 {[%clk 0:02:48.5]}
7. a4 {[%clk 0:03:00.3]} 7... a6 {[%clk 0:02:46.8]} 8. Na3 {[%clk 0:02:46.6]}
8... Nbd7 {[%clk 0:02:29.7]} 9. Bf4 {[%clk 0:02:35.8]} 9... b4 {[%clk 0:02:01]}
10. cxb4 {[%clk 0:02:37.7]} 10... cxd4 {[%clk 0:02:00.8]} 11. e3 {[%clk
0:01:31.3]} 11... dxe3 {[%clk 0:01:46.4]} 12. Bxe3 {[%clk 0:01:32.1]} 12... Be7
{[%clk 0:01:17.2]} 13. Nc4 {[%clk 0:01:32.6]} 13... d5 {[%clk 0:01:15.7]} 14.
Na5 {[%clk 0:01:32.8]} 14... Rb8 {[%clk 0:01:13.1]} 15. Bf4 {[%clk 0:01:25.7]}
15... Bxb4 {[%clk 0:01:00.8]} 16. Bxb8 {[%clk 0:01:25.7]} 16... Qxa5 {[%clk
0:00:57]} 17. Bf4 {[%clk 0:01:19.4]} 17... O-O {[%clk 0:00:56.4]} 18. Bd2 {[%clk
0:01:18.4]} 18... Ne4 {[%clk 0:00:54.5]} 19. Bxb4 {[%clk 0:01:17.5]} 19... Qxb4
{[%clk 0:00:56.4]} 20. Qd4 {[%clk 0:01:14.4]} 20... Qd6 {[%clk 0:00:50.7]} 21.
b4 {[%clk 0:01:09.3]} 21... e5 {[%clk 0:00:49.9]} 22. Qb2 {[%clk 0:01:10.2]}
22... d4 {[%clk 0:00:49.2]} 23. Nd2 {[%clk 0:01:07.1]} 23... f5 {[%clk
0:00:21.3]} 24. Rfe1 {[%clk 0:01:04.6]} 24... Ndf6 {[%clk 0:00:21.1]} 25. b5
{[%clk 0:01:01.3]} 25... a5 {[%clk 0:00:21.3]} 26. Rac1 {[%clk 0:00:54.2]} 26...
Ng4 {[%clk 0:00:21.9]} 27. Nxe4 {[%clk 0:00:31.2]} 27... fxe4 {[%clk 0:00:23.8]}
28. Bxe4 {[%clk 0:00:32.1]} 28... Bxe4 {[%clk 0:00:24.3]} 29. Rxe4 {[%clk
0:00:33]} 29... Nxf2 {[%clk 0:00:25.7]} 30. Qb3+ {[%clk 0:00:23.7]} 30... Kh8
{[%clk 0:00:25.6]} 31. Re2 {[%clk 0:00:24.8]} 31... Nh3+ {[%clk 0:00:24.2]} 32.
Kg2 {[%clk 0:00:26.1]} 32... d3 {[%clk 0:00:23.3]} 33. Rd2 {[%clk 0:00:15.1]}
33... e4 {[%clk 0:00:24.4]} 34. Re1 {[%clk 0:00:15.8]} 34... Qh6 {[%clk
0:00:14.4]} 35. Qc3 {[%clk 0:00:09.9]} 35... Ng5 {[%clk 0:00:15.3]} 36. Kh1
{[%clk 0:00:05.9]} 36... Nf3 {[%clk 0:00:16.1]} 37. Rf2 {[%clk 0:00:06.1]} 37...
Rd8 {[%clk 0:00:14.2]} 38. Rd1 {[%clk 0:00:03.4]} 38... Qe3 {[%clk 0:00:15.3]}
39. Qc7 {[%clk 0:00:03.9]} 39... Rf8 {[%clk 0:00:15.8]} 40. Rdf1 {[%clk
0:00:05]} 40... d2 {[%clk 0:00:16.1]} 41. b6 {[%clk 0:00:06.1]} 41... Qxf2
{[%clk 0:00:16.7]} 42. Rxf2 {[%clk 0:00:07]} 42... d1=Q+ {[%clk 0:00:17.9]} 43.
Kg2 {[%clk 0:00:08.1]} 43... Qg1+ {[%clk 0:00:17.9]} 44. Kh3 {[%clk 0:00:09.5]}
44... Qxf2 {[%clk 0:00:19.4]} 45. b7 {[%clk 0:00:10.8]} 45... Qxh2+ {[%clk
0:00:20.8]} 46. Kg4 {[%clk 0:00:12.2]} 46... h5# {[%clk 0:00:22.7]} 0-1

[Event "*** Titled Tuesday Blitz"]
[Site "Chess.com"]
[Date "2018.11.06"]
[Round "5"]
[White "poummba"]
[Black "alishersuleymenov"]
[Result "1-0"]
[WhiteElo "2415"]
[BlackElo "2482"]
[TimeControl "180+2"]
[EndTime "14:07:25 PST"]
[Termination "poummba won by checkmate"]

1. d4 {[%clk 0:03:01.9]} 1... Nf6 {[%clk 0:02:59.7]} 2. c4 {[%clk 0:03:01]} 2...
c5 {[%clk 0:02:59.1]} 3. Nf3 {[%clk 0:03:02.3]} 3... g6 {[%clk 0:02:59]} 4. g3
{[%clk 0:03:03.3]} 4... Bg7 {[%clk 0:02:58.6]} 5. Bg2 {[%clk 0:03:04.8]} 5...
O-O {[%clk 0:03:00.3]} 6. Nc3 {[%clk 0:03:06.1]} 6... cxd4 {[%clk 0:03:01.4]} 7.
Nxd4 {[%clk 0:03:07.2]} 7... Nc6 {[%clk 0:03:03.3]} 8. O-O {[%clk 0:03:08.1]}
8... d6 {[%clk 0:03:05]} 9. Nxc6 {[%clk 0:03:08.8]} 9... bxc6 {[%clk 0:03:06.9]}
10. Bxc6 {[%clk 0:03:10.5]} 10... Rb8 {[%clk 0:03:04.5]} 11. Bg2 {[%clk
0:03:07]} 11... Qa5 {[%clk 0:02:53.1]} 12. Nb5 {[%clk 0:03:07.6]} 12... Be6
{[%clk 0:02:37.4]} 13. Bd2 {[%clk 0:03:03.4]} 13... Qa6 {[%clk 0:02:28.3]} 14.
b3 {[%clk 0:02:52.9]} 14... Rfc8 {[%clk 0:02:04.1]} 15. Bc3 {[%clk 0:02:47.2]}
15... d5 {[%clk 0:01:49.8]} 16. Be5 {[%clk 0:02:25.3]} 16... dxc4 {[%clk
0:01:45.8]} 17. Bxb8 {[%clk 0:02:21.6]} 17... Qxb5 {[%clk 0:01:46.8]} 18. Bxa7
{[%clk 0:02:10.3]} 18... cxb3 {[%clk 0:01:45]} 19. axb3 {[%clk 0:02:11.5]} 19...
Nd5 {[%clk 0:01:27.4]} 20. Bd4 {[%clk 0:01:58]} 20... Bxd4 {[%clk 0:01:16.9]}
21. Qxd4 {[%clk 0:01:58.9]} 21... Nc3 {[%clk 0:01:18.8]} 22. Kh1 {[%clk
0:01:47.7]} 22... Nxe2 {[%clk 0:01:16.6]} 23. Qe3 {[%clk 0:01:42.8]} 23... Rc3
{[%clk 0:00:40.3]} 24. Qh6 {[%clk 0:01:42]} 24... Bd5 {[%clk 0:00:41.5]} 25.
Rfd1 {[%clk 0:01:10.9]} 25... Bxg2+ {[%clk 0:00:24.9]} 26. Kxg2 {[%clk
0:01:12.8]} 26... Qb7+ {[%clk 0:00:19.3]} 27. Kf1 {[%clk 0:00:45.4]} 27... Rc8
{[%clk 0:00:18.1]} 28. Kxe2 {[%clk 0:00:25.9]} 28... Qxb3 {[%clk 0:00:18.6]} 29.
Qe3 {[%clk 0:00:19.2]} 29... Qb5+ {[%clk 0:00:19.7]} 30. Qd3 {[%clk 0:00:17.1]}
30... Qe5+ {[%clk 0:00:19.4]} 31. Kf1 {[%clk 0:00:16.7]} 31... Rb8 {[%clk
0:00:20.3]} 32. Rab1 {[%clk 0:00:15.5]} 32... Ra8 {[%clk 0:00:20.2]} 33. Qd5
{[%clk 0:00:14.6]} 33... Qxd5 {[%clk 0:00:14.4]} 34. Rxd5 {[%clk 0:00:14.7]}
34... Kf8 {[%clk 0:00:16.3]} 35. Rb7 {[%clk 0:00:14.8]} 35... Ra1+ {[%clk
0:00:17.2]} 36. Kg2 {[%clk 0:00:15.8]} 36... Re1 {[%clk 0:00:18.8]} 37. Rd8+
{[%clk 0:00:16.3]} 37... Kg7 {[%clk 0:00:20.2]} 38. Re8 {[%clk 0:00:16.6]} 38...
Kf6 {[%clk 0:00:21]} 39. Rb6+ {[%clk 0:00:17.1]} 39... Kg7 {[%clk 0:00:20.7]}
40. h4 {[%clk 0:00:17.1]} 40... h5 {[%clk 0:00:22]} 41. Rb7 {[%clk 0:00:10.9]}
41... Kf6 {[%clk 0:00:22.1]} 42. Rb3 {[%clk 0:00:10.1]} 42... Rc1 {[%clk
0:00:23.2]} 43. Rf3+ {[%clk 0:00:09.2]} 43... Ke6 {[%clk 0:00:24.3]} 44. Re3+
{[%clk 0:00:09]} 44... Kf5 {[%clk 0:00:26.2]} 45. R8xe7 {[%clk 0:00:09.5]} 45...
f6 {[%clk 0:00:27.7]} 46. Rf3+ {[%clk 0:00:09.8]} 46... Kg4 {[%clk 0:00:26.7]}
47. Rf4# {[%clk 0:00:10.6]} 1-0

[Event "*** Titled Tuesday Blitz"]
[Site "Chess.com"]
[Date "2018.11.06"]
[Round "5"]
[White "TheRigos"]
[Black "EphiphanyLord"]
[Result "0-1"]
[WhiteElo "2405"]
[BlackElo "2581"]
[TimeControl "180+2"]
[EndTime "14:07:28 PST"]
[Termination "EphiphanyLord won by resignation"]

1. e4 {[%clk 0:03:01.9]} 1... e5 {[%clk 0:03:00.5]} 2. f4 {[%clk 0:03:03.1]}
2... d5 {[%clk 0:03:01.3]} 3. exd5 {[%clk 0:03:04.1]} 3... exf4 {[%clk
0:03:02.6]} 4. Nf3 {[%clk 0:03:04.2]} 4... Nf6 {[%clk 0:03:03.8]} 5. Bc4 {[%clk
0:02:56.3]} 5... Nxd5 {[%clk 0:02:58.1]} 6. O-O {[%clk 0:02:49.1]} 6... Be7
{[%clk 0:02:58.8]} 7. d4 {[%clk 0:02:49.2]} 7... O-O {[%clk 0:02:56.6]} 8. Bb3
{[%clk 0:02:30.8]} 8... Bg4 {[%clk 0:02:34.4]} 9. c4 {[%clk 0:02:24.8]} 9... Ne3
{[%clk 0:02:33.9]} 10. Bxe3 {[%clk 0:02:26.4]} 10... fxe3 {[%clk 0:02:35.7]} 11.
Nc3 {[%clk 0:02:14.2]} 11... Nc6 {[%clk 0:02:17.8]} 12. Nd5 {[%clk 0:02:13]}
12... Bg5 {[%clk 0:02:14.1]} 13. Qd3 {[%clk 0:02:03.9]} 13... Bh6 {[%clk
0:02:03.9]} 14. Rae1 {[%clk 0:01:31]} 14... Re8 {[%clk 0:02:02.6]} 15. Ba4
{[%clk 0:01:23.5]} 15... e2 {[%clk 0:01:42.3]} 16. Rf2 {[%clk 0:01:01.8]} 16...
Qd6 {[%clk 0:01:29]} 17. Rexe2 {[%clk 0:00:36.9]} 17... Rxe2 {[%clk 0:01:25.5]}
18. Rxe2 {[%clk 0:00:38.8]} 18... Bxf3 {[%clk 0:01:18.9]} 19. gxf3 {[%clk
0:00:40.7]} 19... Rd8 {[%clk 0:01:01.8]} 20. Kh1 {[%clk 0:00:32]} 20... g6
{[%clk 0:01:02.6]} 21. Bb3 {[%clk 0:00:12.1]} 21... Nb4 {[%clk 0:00:46.1]} 22.
Nxb4 {[%clk 0:00:09.2]} 22... Qxb4 {[%clk 0:00:48]} 23. Qe4 {[%clk 0:00:08.8]}
23... Bg7 {[%clk 0:00:44.5]} 24. d5 {[%clk 0:00:04.1]} 24... Qd6 {[%clk
0:00:27.1]} 25. Qe7 {[%clk 0:00:04.7]} 25... Bf6 {[%clk 0:00:26.4]} 26. Qe4
{[%clk 0:00:05.8]} 26... Kg7 {[%clk 0:00:23.7]} 27. Qe3 {[%clk 0:00:05.9]} 27...
b6 {[%clk 0:00:24.5]} 28. Qd2 {[%clk 0:00:06.5]} 28... a5 {[%clk 0:00:24.6]} 29.
Kg2 {[%clk 0:00:07.7]} 29... h5 {[%clk 0:00:24.7]} 30. Qd3 {[%clk 0:00:07.6]}
30... h4 {[%clk 0:00:25.7]} 31. Qe4 {[%clk 0:00:04.6]} 31... h3+ {[%clk
0:00:26.3]} 32. Kh1 {[%clk 0:00:03.3]} 32... Rh8 {[%clk 0:00:27.3]} 33. f4
{[%clk 0:00:04.3]} 33... Rh4 {[%clk 0:00:28.3]} 34. Rf2 {[%clk 0:00:05]} 34...
Qc5 {[%clk 0:00:29]} 35. Qf3 {[%clk 0:00:03.7]} 35... Qb4 {[%clk 0:00:27.7]} 36.
Qe2 {[%clk 0:00:03.4]} 36... a4 {[%clk 0:00:28.2]} 37. Bd1 {[%clk 0:00:04]}
37... a3 {[%clk 0:00:27.4]} 38. b3 {[%clk 0:00:05.4]} 38... Qc3 {[%clk
0:00:25.4]} 39. Rf3 {[%clk 0:00:06.1]} 39... Qc1 {[%clk 0:00:26.6]} 40. Rf1
{[%clk 0:00:06.7]} 40... Rxf4 {[%clk 0:00:26.2]} 41. Rg1 {[%clk 0:00:08.1]}
41... Qb2 {[%clk 0:00:24.5]} 42. Qe3 {[%clk 0:00:05.5]} 42... Rf2 {[%clk
0:00:25.1]} 43. Qxh3 {[%clk 0:00:06.6]} 43... Be5 {[%clk 0:00:25.9]} 44. Rg2
{[%clk 0:00:05.8]} 44... Rf1+ {[%clk 0:00:25.5]} 45. Rg1 {[%clk 0:00:07.2]}
45... Rxg1+ {[%clk 0:00:27.1]} 46. Kxg1 {[%clk 0:00:08.9]} 46... Qd4+ {[%clk
0:00:28.5]} 0-1

[Event "*** Titled Tuesday Blitz"]
[Site "Chess.com"]
[Date "2018.11.06"]
[Round "5"]
[White "2165149677570"]
[Black "Zarikovs1999"]
[Result "0-1"]
[WhiteElo "2387"]
[BlackElo "2352"]
[TimeControl "180+2"]
[EndTime "14:07:36 PST"]
[Termination "Zarikovs1999 won by resignation"]

1. e4 {[%clk 0:03:01.9]} 1... c5 {[%clk 0:02:56.9]} 2. Nf3 {[%clk 0:03:00.4]}
2... Nf6 {[%clk 0:02:58.2]} 3. e5 {[%clk 0:02:58.5]} 3... Nd5 {[%clk 0:02:57.7]}
4. Nc3 {[%clk 0:03:00]} 4... Nxc3 {[%clk 0:02:57]} 5. dxc3 {[%clk 0:03:00.9]}
5... Nc6 {[%clk 0:02:56.3]} 6. Bf4 {[%clk 0:02:58.5]} 6... Qb6 {[%clk
0:02:56.3]} 7. b3 {[%clk 0:02:54.7]} 7... Qc7 {[%clk 0:02:54.8]} 8. Bg3 {[%clk
0:02:52.9]} 8... e6 {[%clk 0:02:54.6]} 9. Bd3 {[%clk 0:02:49.6]} 9... b6 {[%clk
0:02:52.3]} 10. Qe2 {[%clk 0:02:48.2]} 10... h6 {[%clk 0:02:53.5]} 11. Nd2
{[%clk 0:02:48.7]} 11... Bb7 {[%clk 0:02:50.5]} 12. a4 {[%clk 0:02:46.7]} 12...
d5 {[%clk 0:02:43.6]} 13. exd6 {[%clk 0:02:40.5]} 13... Bxd6 {[%clk 0:02:43.1]}
14. Nc4 {[%clk 0:02:26]} 14... Bxg3 {[%clk 0:02:34.4]} 15. hxg3 {[%clk
0:02:27.9]} 15... Rd8 {[%clk 0:02:27.2]} 16. O-O-O {[%clk 0:02:18.3]} 16... Ne7
{[%clk 0:02:16.9]} 17. Be4 {[%clk 0:02:04.3]} 17... Bxe4 {[%clk 0:02:13.3]} 18.
Qxe4 {[%clk 0:02:04]} 18... Rxd1+ {[%clk 0:02:12.5]} 19. Rxd1 {[%clk 0:02:04.1]}
19... O-O {[%clk 0:02:13.5]} 20. Qd3 {[%clk 0:01:56.5]} 20... Nd5 {[%clk
0:02:08.3]} 21. Ne3 {[%clk 0:01:52.1]} 21... Nxe3 {[%clk 0:01:47.4]} 22. Qxe3
{[%clk 0:01:54]} 22... Rd8 {[%clk 0:01:47.8]} 23. Rxd8+ {[%clk 0:01:51.8]} 23...
Qxd8 {[%clk 0:01:49.7]} 24. Qd2 {[%clk 0:01:53.3]} 24... Qd5 {[%clk 0:01:34.9]}
25. Qxd5 {[%clk 0:01:47.5]} 25... exd5 {[%clk 0:01:36.8]} 26. a5 {[%clk
0:01:40.6]} 26... f6 {[%clk 0:01:26.2]} 27. Kb2 {[%clk 0:01:26.8]} 27... Kf7
{[%clk 0:01:13.8]} 28. Ka3 {[%clk 0:01:14.6]} 28... b5 {[%clk 0:01:06.9]} 29. c4
{[%clk 0:00:50.6]} 29... dxc4 {[%clk 0:01:05.8]} 30. bxc4 {[%clk 0:00:50.3]}
30... b4+ {[%clk 0:01:07.1]} 31. Ka4 {[%clk 0:00:45.8]} 31... a6 {[%clk
0:01:07.9]} 32. c3 {[%clk 0:00:47.1]} 32... bxc3 {[%clk 0:01:07.2]} 33. Kb3
{[%clk 0:00:48.7]} 33... Ke6 {[%clk 0:01:07.8]} 34. Kxc3 {[%clk 0:00:49.8]}
34... Ke5 {[%clk 0:01:07.2]} 35. Kd3 {[%clk 0:00:51.4]} 35... g5 {[%clk
0:00:57]} 36. Ke3 {[%clk 0:00:41.6]} 36... h5 {[%clk 0:00:56.7]} 37. f3 {[%clk
0:00:38.6]} 37... g4 {[%clk 0:00:41.3]} 38. fxg4 {[%clk 0:00:21.3]} 38... hxg4
{[%clk 0:00:40.6]} 39. Kd3 {[%clk 0:00:22.7]} 39... f5 {[%clk 0:00:39.1]} 40.
Ke3 {[%clk 0:00:24]} 40... Ke6 {[%clk 0:00:39.3]} 41. Kf4 {[%clk 0:00:24.9]}
41... Kf6 {[%clk 0:00:40.5]} 42. Ke3 {[%clk 0:00:24.6]} 42... Ke5 {[%clk
0:00:41.8]} 43. Kd3 {[%clk 0:00:19.7]} 43... f4 {[%clk 0:00:41.8]} 44. gxf4+
{[%clk 0:00:07.5]} 44... Kxf4 {[%clk 0:00:42.2]} 45. Ke2 {[%clk 0:00:08.8]}
45... Ke4 {[%clk 0:00:35.2]} 46. Kf2 {[%clk 0:00:09.6]} 46... Kd4 {[%clk
0:00:36.5]} 47. Kg3 {[%clk 0:00:10.8]} 47... Kxc4 {[%clk 0:00:37.9]} 48. Kxg4
{[%clk 0:00:12.4]} 48... Kb3 {[%clk 0:00:38.1]} 49. Kh5 {[%clk 0:00:11.5]} 49...
c4 {[%clk 0:00:38.5]} 50. g4 {[%clk 0:00:13.4]} 50... c3 {[%clk 0:00:39.9]} 51.
g5 {[%clk 0:00:15.3]} 51... c2 {[%clk 0:00:40.9]} 52. g6 {[%clk 0:00:17.2]}
52... c1=Q {[%clk 0:00:42.1]} 53. g7 {[%clk 0:00:19.1]} 53... Qg1 {[%clk
0:00:38.7]} 54. Kh6 {[%clk 0:00:20.1]} 54... Kb4 {[%clk 0:00:38.5]} 0-1

[Event "*** Titled Tuesday Blitz"]
[Site "Chess.com"]
[Date "2018.11.06"]
[Round "5"]
[White "MatyChess1"]
[Black "Chessialist"]
[Result "1-0"]
[WhiteElo "2521"]
[BlackElo "2467"]
[TimeControl "180+2"]
[EndTime "14:07:38 PST"]
[Termination "MatyChess1 won by resignation"]

1. e4 {[%clk 0:03:01.9]} 1... c5 {[%clk 0:03:00.6]} 2. Nf3 {[%clk 0:03:02]} 2...
e6 {[%clk 0:03:01.8]} 3. g3 {[%clk 0:03:01.6]} 3... b6 {[%clk 0:03:01.9]} 4. Bg2
{[%clk 0:02:59.8]} 4... Bb7 {[%clk 0:03:03.3]} 5. Qe2 {[%clk 0:03:01.4]} 5... g6
{[%clk 0:03:04.4]} 6. O-O {[%clk 0:02:52.4]} 6... Bg7 {[%clk 0:03:05.4]} 7. c3
{[%clk 0:02:51.3]} 7... Nc6 {[%clk 0:03:06]} 8. Rd1 {[%clk 0:02:46.8]} 8... Nge7
{[%clk 0:03:02.9]} 9. d4 {[%clk 0:02:47.6]} 9... cxd4 {[%clk 0:03:03.9]} 10.
cxd4 {[%clk 0:02:49.5]} 10... d5 {[%clk 0:03:05]} 11. e5 {[%clk 0:02:49.7]}
11... O-O {[%clk 0:03:03.3]} 12. Nc3 {[%clk 0:02:43.3]} 12... Rc8 {[%clk
0:03:00.6]} 13. Bf4 {[%clk 0:02:42.5]} 13... Na5 {[%clk 0:02:58.2]} 14. Rac1
{[%clk 0:02:40.5]} 14... Qd7 {[%clk 0:02:54.9]} 15. b3 {[%clk 0:02:33.1]} 15...
Rc7 {[%clk 0:02:43.9]} 16. Rc2 {[%clk 0:02:32.3]} 16... Rfc8 {[%clk 0:02:44.2]}
17. Rdc1 {[%clk 0:02:33.5]} 17... a6 {[%clk 0:02:33.3]} 18. Ne1 {[%clk
0:01:36.5]} 18... Nec6 {[%clk 0:02:26.3]} 19. Qd2 {[%clk 0:01:11.3]} 19... Nb4
{[%clk 0:02:25.4]} 20. Rb2 {[%clk 0:01:11]} 20... Nxa2 {[%clk 0:02:26.2]} 21.
Nxa2 {[%clk 0:01:09.8]} 21... Rxc1 {[%clk 0:02:23.4]} 22. Nxc1 {[%clk
0:01:10.8]} 22... Bc6 {[%clk 0:02:15.9]} 23. Rc2 {[%clk 0:01:06.1]} 23... Bb5
{[%clk 0:02:16.2]} 24. Rxc8+ {[%clk 0:01:06.9]} 24... Qxc8 {[%clk 0:02:18.1]}
25. Qc2 {[%clk 0:01:06.9]} 25... Qd7 {[%clk 0:02:10.3]} 26. Bd2 {[%clk 0:01:07]}
26... Bf8 {[%clk 0:02:10.1]} 27. h4 {[%clk 0:01:01.6]} 27... Ba3 {[%clk
0:02:09.8]} 28. Na2 {[%clk 0:01:00.1]} 28... Qc6 {[%clk 0:02:06.2]} 29. Bxa5
{[%clk 0:00:55.4]} 29... bxa5 {[%clk 0:02:05.6]} 30. Bf1 {[%clk 0:00:53.8]}
30... Qxc2 {[%clk 0:02:00.1]} 31. Nxc2 {[%clk 0:00:54.1]} 31... Bb2 {[%clk
0:02:02]} 32. Bxb5 {[%clk 0:00:46.6]} 32... axb5 {[%clk 0:02:02.1]} 33. Kf1
{[%clk 0:00:48.1]} 33... b4 {[%clk 0:02:02]} 34. Ke2 {[%clk 0:00:32.9]} 34... a4
{[%clk 0:02:02.7]} 35. bxa4 {[%clk 0:00:33.1]} 35... b3 {[%clk 0:02:03.5]} 36.
Nab4 {[%clk 0:00:34.3]} 36... bxc2 {[%clk 0:02:03.1]} 37. Nxc2 {[%clk
0:00:36.2]} 37... Bc3 {[%clk 0:01:56.7]} 38. g4 {[%clk 0:00:33.9]} 38... Kf8
{[%clk 0:01:56.3]} 39. Kd3 {[%clk 0:00:34.2]} 39... Ba5 {[%clk 0:01:56.7]} 40.
f3 {[%clk 0:00:32.4]} 40... Ke7 {[%clk 0:01:57.6]} 41. Na1 {[%clk 0:00:31.3]}
41... h5 {[%clk 0:01:54.9]} 42. gxh5 {[%clk 0:00:30.6]} 42... gxh5 {[%clk
0:01:55.7]} 43. Nc2 {[%clk 0:00:20]} 43... f6 {[%clk 0:01:52.4]} 44. f4 {[%clk
0:00:19.9]} 44... f5 {[%clk 0:01:48]} 45. Ke3 {[%clk 0:00:19.5]} 45... Kd7
{[%clk 0:01:47.6]} 46. Kd3 {[%clk 0:00:20.4]} 46... Kc6 {[%clk 0:01:48.2]} 47.
Ke2 {[%clk 0:00:21.7]} 47... Kd7 {[%clk 0:01:49.2]} 48. Kd3 {[%clk 0:00:22.9]}
48... Kc6 {[%clk 0:01:50.4]} 49. Ke3 {[%clk 0:00:22.5]} 49... Bd8 {[%clk
0:01:34.1]} 50. Nb4+ {[%clk 0:00:23.7]} 50... Kb7 {[%clk 0:01:35.2]} 51. Nd3
{[%clk 0:00:23.5]} 51... Bxh4 {[%clk 0:01:28.8]} 52. Nc5+ {[%clk 0:00:24.7]}
52... Kc6 {[%clk 0:01:29.2]} 53. Nxe6 {[%clk 0:00:26.6]} 53... Be1 {[%clk
0:01:27.6]} 54. Ng7 {[%clk 0:00:24.4]} 54... h4 {[%clk 0:01:28.8]} 55. Kf3
{[%clk 0:00:24.9]} 55... h3 {[%clk 0:01:27.3]} 56. Nxf5 {[%clk 0:00:25.7]} 56...
Kd7 {[%clk 0:01:22.1]} 57. Ne3 {[%clk 0:00:24.1]} 57... h2 {[%clk 0:01:21.9]}
58. Kg2 {[%clk 0:00:22.4]} 58... Bf2 {[%clk 0:01:22.5]} 59. Nc2 {[%clk
0:00:20.2]} 59... Ke6 {[%clk 0:01:18.1]} 60. a5 {[%clk 0:00:20.9]} 1-0

[Event "*** Titled Tuesday Blitz"]
[Site "Chess.com"]
[Date "2018.11.06"]
[Round "5"]
[White "Iyael"]
[Black "AndrewMcStone"]
[Result "1-0"]
[WhiteElo "2040"]
[BlackElo "2133"]
[TimeControl "180+2"]
[EndTime "14:07:41 PST"]
[Termination "Iyael won by resignation"]

1. e4 {[%clk 0:03:01.9]} 1... e6 {[%clk 0:03:00.7]} 2. d4 {[%clk 0:02:59.8]}
2... d5 {[%clk 0:03:02]} 3. e5 {[%clk 0:03:00.1]} 3... c5 {[%clk 0:03:02]} 4. c3
{[%clk 0:02:59.8]} 4... Nc6 {[%clk 0:03:03.3]} 5. Nf3 {[%clk 0:03:00.3]} 5...
Bd7 {[%clk 0:03:03.4]} 6. Be2 {[%clk 0:02:56]} 6... f6 {[%clk 0:02:56.9]} 7.
exf6 {[%clk 0:02:43.1]} 7... Nxf6 {[%clk 0:02:56.3]} 8. O-O {[%clk 0:02:42]}
8... Qc7 {[%clk 0:02:45.7]} 9. Bg5 {[%clk 0:02:35.2]} 9... Bd6 {[%clk
0:02:34.5]} 10. dxc5 {[%clk 0:02:20.8]} 10... Bxc5 {[%clk 0:02:36.4]} 11. b4
{[%clk 0:02:21.4]} 11... Bd6 {[%clk 0:02:34.8]} 12. b5 {[%clk 0:02:21.8]} 12...
Na5 {[%clk 0:02:29.1]} 13. a4 {[%clk 0:02:05.4]} 13... O-O {[%clk 0:02:29.2]}
14. Bh4 {[%clk 0:02:04.1]} 14... Ne4 {[%clk 0:02:23.5]} 15. Qd3 {[%clk
0:01:55.8]} 15... Rac8 {[%clk 0:02:10]} 16. Rc1 {[%clk 0:01:51.5]} 16... Nb3
{[%clk 0:02:10.9]} 17. Nbd2 {[%clk 0:01:48.7]} 17... Nxc1 {[%clk 0:02:06.8]} 18.
Rxc1 {[%clk 0:01:48]} 18... Nxd2 {[%clk 0:01:53.9]} 19. Nxd2 {[%clk 0:01:38.7]}
19... Bxh2+ {[%clk 0:01:54.4]} 20. Kh1 {[%clk 0:01:35.6]} 20... Bf4 {[%clk
0:01:53.8]} 21. Rc2 {[%clk 0:01:33.4]} 21... Be8 {[%clk 0:01:44.3]} 22. Qh3
{[%clk 0:01:18.4]} 22... Bg6 {[%clk 0:01:08.2]} 23. Qxe6+ {[%clk 0:01:16.6]}
23... Kh8 {[%clk 0:01:09.3]} 24. Ra2 {[%clk 0:01:09.2]} 24... Rce8 {[%clk
0:01:06.2]} 25. Qg4 {[%clk 0:01:06.6]} 25... Bxd2 {[%clk 0:00:53.6]} 26. Rxd2
{[%clk 0:01:06.3]} 26... Qf4 {[%clk 0:00:37.3]} 27. Qxf4 {[%clk 0:01:02.4]}
27... Rxf4 {[%clk 0:00:39.2]} 28. Bg3 {[%clk 0:01:03.4]} 28... Rxa4 {[%clk
0:00:39.4]} 29. Bf3 {[%clk 0:00:57.6]} 29... Be4 {[%clk 0:00:37.2]} 30. Bd1
{[%clk 0:00:55.5]} 30... Ra1 {[%clk 0:00:36.3]} 31. Kh2 {[%clk 0:00:56]} 31...
Rc8 {[%clk 0:00:32.5]} 32. Be5 {[%clk 0:00:56]} 32... Re8 {[%clk 0:00:23.5]} 33.
Bd4 {[%clk 0:00:56.6]} 33... h6 {[%clk 0:00:23.4]} 34. Bh5 {[%clk 0:00:51.3]}
34... Rf8 {[%clk 0:00:20.5]} 35. f3 {[%clk 0:00:50.6]} 35... Bh7 {[%clk
0:00:18.4]} 36. Bg4 {[%clk 0:00:51]} 36... Bg8 {[%clk 0:00:19]} 37. Re2 {[%clk
0:00:49.9]} 37... Kh7 {[%clk 0:00:17.9]} 38. Re7 {[%clk 0:00:50.1]} 38... Rf7
{[%clk 0:00:19.2]} 39. Re8 {[%clk 0:00:50.7]} 39... Rb1 {[%clk 0:00:15.3]} 40.
Be6 {[%clk 0:00:50.5]} 40... Kg6 {[%clk 0:00:12.4]} 41. Rxg8 {[%clk 0:00:48.5]}
41... Re7 {[%clk 0:00:10.4]} 42. Bxd5 {[%clk 0:00:48.1]} 42... Rxb5 {[%clk
0:00:09.8]} 43. Be4+ {[%clk 0:00:48.7]} 43... Kf7 {[%clk 0:00:09.9]} 44. Rxg7+
{[%clk 0:00:49]} 44... Kf8 {[%clk 0:00:09.8]} 45. Rg6 {[%clk 0:00:47.2]} 45...
Rh5+ {[%clk 0:00:08.6]} 46. Kg3 {[%clk 0:00:47.5]} 46... Rg5+ {[%clk 0:00:08.3]}
47. Rxg5 {[%clk 0:00:46]} 47... hxg5 {[%clk 0:00:10.2]} 48. Kg4 {[%clk
0:00:47.1]} 48... a5 {[%clk 0:00:11.2]} 49. Kxg5 {[%clk 0:00:47.7]} 49... Rc7
{[%clk 0:00:10.3]} 50. Kf4 {[%clk 0:00:46.5]} 50... a4 {[%clk 0:00:11]} 51. Bd5
{[%clk 0:00:47.2]} 51... a3 {[%clk 0:00:10.5]} 52. Bb3 {[%clk 0:00:47]} 52... b5
{[%clk 0:00:10.5]} 53. g4 {[%clk 0:00:47.3]} 53... Re7 {[%clk 0:00:08.3]} 54.
Bc5 {[%clk 0:00:47.7]} 1-0